bitfinex/quotes_BTCUSD_20240723
["timestamp","ask_amount","ask_price","bid_price","bid_amount"]
[1721718891817,0.00384,66630.0,66629.0,1.69128777]
[1721718892540,0.00384,66630.0,66629.0,1.61166827]
[1721718892745,0.00384,66630.0,66629.0,1.69143319]
[1721718893907,0.00384,66630.0,66629.0,1.89252261]
[1721718894187,0.00384,66630.0,66629.0,1.97119584]
[1721718894518,0.00384,66630.0,66629.0,1.97053591]
[1721718894931,0.00384,66630.0,66629.0,1.92053591]
[1721718895103,0.00384,66630.0,66629.0,1.69077326]
[1721718897587,0.00384,66630.0,66629.0,1.69097954]
[1721718898375,0.00384,66630.0,66629.0,1.39081054]
[1721718899117,0.00384,66630.0,66629.0,0.72947254]
[1721718899118,0.08524,66630.0,66629.0,0.72947254]
[1721718899347,0.13111323,66630.0,66629.0,0.72947254]
[1721718899543,0.08524,66630.0,66629.0,0.72947254]
[1721718899720,0.13111323,66630.0,66629.0,0.72947254]
[1721718900090,0.08524,66630.0,66629.0,0.57938854]
[1721718900292,0.13111323,66630.0,66629.0,0.50007727]
[1721718900515,0.34309523,66630.0,66629.0,0.47707727]
[1721718900712,0.94342523,66630.0,66629.0,0.47707727]
[1721718901099,0.94342523,66630.0,66629.0,0.47118991]
[1721718901302,0.94342523,66630.0,66629.0,0.47706518]
[1721718901699,1.03290165,66630.0,66629.0,0.47706518]
[1721718902559,1.03290165,66630.0,66629.0,0.33004527]
[1721718902560,1.4800293,66630.0,66629.0,0.33004527]
[1721718902765,1.46175076,66630.0,66629.0,0.33004527]
[1721718902966,1.46175076,66630.0,66629.0,0.32417]
[1721718902967,1.34990737,66630.0,66629.0,0.32417]
[1721718903166,1.34359023,66630.0,66629.0,0.32417]
[1721718903317,1.59586672,66630.0,66629.0,0.31417]
[1721718903722,1.59586672,66630.0,66629.0,0.30017]
[1721718903723,1.44690407,66630.0,66629.0,0.30017]
[1721718904119,1.44690407,66630.0,66629.0,0.30617]
[1721718904346,1.44690407,66630.0,66629.0,0.30017]
[1721718904542,1.45490407,66630.0,66629.0,0.30117]
[1721718904753,1.45790407,66630.0,66629.0,0.30117]
[1721718905425,1.35159023,66630.0,66629.0,0.30117]
[1721718906477,1.46342723,66630.0,66629.0,0.23776438]
[1721718906695,1.35159023,66630.0,66629.0,0.23776438]
[1721718906909,1.45788557,66630.0,66629.0,0.23776438]
[1721718907098,1.45788557,66630.0,66629.0,0.23052326]
[1721718907365,1.60484822,66630.0,66629.0,0.23052326]
[1721718907603,1.60484822,66630.0,66629.0,0.23002243]
[1721718908225,0.85443622,66630.0,66601.0,0.06496343]
[1721718908429,0.04587323,66614.0,66613.0,0.150118]
[1721718908632,0.12727323,66615.0,66613.0,0.29713791]
[1721718908839,0.12727323,66615.0,66614.0,0.29713791]
[1721718909060,0.12727323,66615.0,66614.0,0.14701991]
[1721718909259,0.12727323,66615.0,66614.0,0.15291049]
[1721718909484,0.04587323,66618.0,66614.0,0.30302849]
[1721718909689,0.04587323,66619.0,66616.0,0.150113]
[1721718909937,0.0752,66623.0,66617.0,0.15296561]
[1721718909938,0.04587323,66618.0,66617.0,0.15296561]
[1721718910173,0.04587323,66619.0,66617.0,0.15296561]
[1721718910380,0.04587323,66622.0,66618.0,0.023]
[1721718910576,0.002794,66621.0,66619.0,0.14701991]
[1721718910804,0.002794,66622.0,66621.0,0.150102]
[1721718911008,0.04587323,66622.0,66621.0,0.29712191]
[1721718911211,0.04587323,66622.0,66621.0,0.15296229]
[1721718911637,0.04687323,66622.0,66621.0,0.30306429]
[1721718911886,0.04687323,66622.0,66621.0,0.15296229]
[1721718912088,0.04787323,66622.0,66621.0,0.16196229]
[1721718912402,0.04787323,66622.0,66621.0,0.31206429]
[1721718912659,0.002,66622.0,66621.0,0.31206429]
[1721718912907,0.04787323,66622.0,66621.0,0.16196229]
[1721718913301,0.04787323,66622.0,66621.0,0.31206429]
[1721718913527,0.04787323,66622.0,66621.0,0.31506429]
[1721718913846,0.04587323,66622.0,66621.0,0.30606429]
[1721718914706,0.18477323,66622.0,66621.0,0.15596229]
[1721718914876,0.2105995,66622.0,66621.0,0.30606429]
[1721718915083,0.12087323,66622.0,66621.0,0.30606429]
[1721718915331,0.12187323,66622.0,66621.0,0.31506429]
[1721718916961,0.12187323,66622.0,66621.0,0.61526929]
[1721718917370,0.076,66622.0,66621.0,0.61526929]
[1721718917750,0.076,66622.0,66621.0,0.91547429]
[1721718917751,0.001,66622.0,66621.0,0.91547429]
[1721718918172,0.001,66622.0,66621.0,0.61526929]
[1721718918572,0.04587323,66623.0,66622.0,0.1501]
[1721718918775,0.04587323,66623.0,66622.0,0.59732091]
[1721718918976,0.04587323,66623.0,66622.0,0.60325835]
[1721718919312,0.04587323,66623.0,66622.0,0.30305735]
[1721718919735,0.0766,66627.0,66626.0,0.450274]
[1721718919944,0.0766,66627.0,66626.0,0.89747691]
[1721718920147,0.0766,66627.0,66626.0,0.90341315]
[1721718920988,0.0766,66627.0,66626.0,0.60323015]
[1721718921165,0.12247323,66627.0,66626.0,0.60323015]
[1721718921371,0.0776,66627.0,66626.0,0.61123015]
[1721718923406,0.12347323,66627.0,66626.0,0.61323015]
[1721718924077,0.0776,66627.0,66626.0,0.91341315]
[1721718925477,0.001,66627.0,66626.0,0.91341315]
[1721718925678,0.001,66627.0,66626.0,0.97341315]
[1721718926325,0.001,66627.0,66626.0,1.06081315]
[1721718926543,0.001,66627.0,66626.0,1.38399615]
[1721718927423,0.001,66627.0,66626.0,1.38199615]
[1721718927634,0.001,66627.0,66626.0,1.37399615]
[1721718927851,0.00084,66630.0,66629.0,1.191191]
[1721718928081,0.00084,66630.0,66629.0,1.46039925]
[1721718928278,0.00084,66630.0,66629.0,1.99746537]
[1721718928388,0.00084,66630.0,66629.0,2.00159214]
[1721718928595,0.00084,66630.0,66629.0,2.04722879]
[1721718928995,0.00084,66630.0,66629.0,2.34739879]
[1721718929191,0.00084,66630.0,66629.0,2.49436144]
[1721718929971,0.00084,66630.0,66629.0,2.49367909]
[1721718930495,0.00084,66630.0,66629.0,2.44872479]
[1721718930953,0.00184,66630.0,66629.0,2.37162722]
[1721718931613,0.00184,66630.0,66629.0,2.31750045]
[1721718931828,0.00184,66630.0,66629.0,2.32263537]
[1721718932162,0.00184,66630.0,66629.0,2.371626]
[1721718932598,0.00184,66630.0,66629.0,2.32676214]
[1721718933137,0.00184,66630.0,66629.0,2.3149738]
[1721718935054,0.00184,66630.0,66629.0,2.46193645]
[1721718935262,0.00184,66630.0,66629.0,2.76210545]
[1721718935488,0.00184,66630.0,66629.0,2.80650212]
[1721718935973,0.002794,66647.0,66643.0,0.05]
[1721718936173,0.00084,66652.0,66650.0,0.450112]
[1721718936174,0.002794,66651.0,66650.0,0.450112]
[1721718936372,0.00084,66652.0,66651.0,0.473105]
[1721718936488,0.00084,66652.0,66651.0,1.073245]
[1721718936882,0.00084,66652.0,66651.0,1.3791315]
[1721718937843,0.00084,66652.0,66651.0,1.3851315]
[1721718938043,0.00184,66652.0,66651.0,1.3851315]
[1721718938260,0.00184,66652.0,66651.0,1.67311406]
[1721718938464,0.00184,66652.0,66651.0,1.78651406]
[1721718938866,0.00184,66652.0,66651.0,1.80051406]
[1721718939116,0.00184,66652.0,66651.0,1.65355141]
[1721718939318,0.00184,66652.0,66651.0,2.00362141]
[1721718939504,0.00084,66652.0,66651.0,2.00774818]
[1721718939657,0.00084,66652.0,66651.0,2.08694818]
[1721718939861,0.00084,66652.0,66651.0,2.24591083]
[1721718940112,0.00084,66652.0,66651.0,2.53198083]
[1721718940340,0.00084,66652.0,66651.0,2.57808664]
[1721718940665,0.002794,66672.0,66671.0,0.51217]
[1721718940868,0.0829,66677.0,66676.0,0.749895]
[1721718941075,0.05433323,66680.0,66679.0,0.449916]
[1721718941280,0.00846,66680.0,66679.0,1.71516391]
[1721718941485,0.00846,66680.0,66679.0,1.45000825]
[1721718941701,0.00846,66680.0,66679.0,0.93626062]
[1721718941903,0.00846,66680.0,66679.0,0.63631662]
[1721718942115,0.00846,66680.0,66679.0,0.93626062]
[1721718942518,0.00846,66680.0,66679.0,1.23620462]
[1721718944680,0.00846,66680.0,66679.0,0.95026062]
[1721718944855,0.00846,66680.0,66679.0,1.25020462]
[1721718944999,0.00846,66680.0,66679.0,1.23620462]
[1721718945625,0.00846,66680.0,66679.0,0.63631662]
[1721718945829,0.13173323,66680.0,66679.0,0.48634462]
[1721718946053,0.13173323,66680.0,66679.0,0.33032471]
[1721718946054,0.59735455,66680.0,66679.0,0.33032471]
[1721718946278,0.59735455,66680.0,66679.0,0.31853637]
[1721718946607,0.28170323,66680.0,66679.0,0.31853637]
[1721718947233,0.58164323,66680.0,66679.0,0.31853637]
[1721718947450,0.94638323,66680.0,66679.0,0.31853637]
[1721718947652,1.34632323,66680.0,66679.0,0.31853637]
[1721718948257,1.34632323,66680.0,66679.0,0.32753637]
[1721718948494,1.49172041,66680.0,66679.0,0.32753637]
[1721718948633,1.49172041,66680.0,66679.0,0.31853637]
[1721718948833,1.49172041,66680.0,66679.0,0.30453637]
[1721718949057,1.49172041,66680.0,66679.0,0.29994]
[1721718949263,1.49172041,66680.0,66679.0,0.30694]
[1721718949477,1.34632323,66680.0,66679.0,0.29994]
[1721718949718,1.34632323,66680.0,66679.0,0.30539974]
[1721718949921,1.34632323,66680.0,66679.0,0.30839974]
[1721718950656,1.34632323,66680.0,66679.0,0.30539974]
[1721718950866,1.05038323,66680.0,66679.0,0.30539974]
[1721718951345,1.04638323,66680.0,66679.0,0.30539974]
[1721718951624,1.05038323,66680.0,66679.0,0.30539974]
[1721718951825,0.40463,66680.0,66679.0,0.45241965]
[1721718952026,0.13573323,66680.0,66679.0,0.45541965]
[1721718952354,0.13173323,66680.0,66679.0,0.45541965]
[1721718952823,0.28570323,66680.0,66679.0,0.45541965]
[1721718953151,0.13573323,66680.0,66679.0,0.45541965]
[1721718953612,0.13573323,66680.0,66679.0,0.45241965]
[1721718953800,0.13573323,66680.0,66679.0,0.45541965]
[1721718954121,0.08586,66680.0,66679.0,0.45541965]
[1721718954326,0.13173323,66680.0,66679.0,0.45641965]
[1721718954952,0.13173323,66680.0,66679.0,0.45541965]
[1721718955184,0.13173323,66680.0,66679.0,0.45241965]
[1721718955388,0.13173323,66680.0,66679.0,0.45441965]
[1721718955609,0.13173323,66680.0,66679.0,0.46241965]
[1721718956001,0.13173323,66680.0,66679.0,0.45441965]
[1721718956370,0.13173323,66680.0,66679.0,0.46441965]
[1721718956576,0.28170323,66680.0,66679.0,0.46441965]
[1721718956949,0.88158323,66680.0,66679.0,0.46441965]
[1721718957179,1.14023379,66680.0,66679.0,0.31739974]
[1721718957580,1.14023379,66680.0,66679.0,0.31194]
[1721718957803,1.14023379,66680.0,66679.0,0.30994]
[1721718958261,1.14023379,66680.0,66679.0,0.31194]
[1721718958799,1.00618612,66680.0,66679.0,0.31194]
[1721718959201,1.00618612,66680.0,66679.0,0.30742435]
[1721718959609,0.40630612,66680.0,66679.0,0.46444426]
[1721718959805,0.40630399,66680.0,66679.0,0.46444426]
[1721718962067,0.40630457,66680.0,66679.0,0.46444426]
[1721718962303,0.70624457,66680.0,66679.0,0.46444426]
[1721718962507,1.42352064,66680.0,66679.0,0.31742435]
[1721718962690,1.49002064,66680.0,66679.0,0.31194]
[1721718963094,1.49002064,66680.0,66679.0,0.45895991]
[1721718963095,0.70624457,66680.0,66679.0,0.45895991]
[1721718963295,0.70624457,66680.0,66679.0,0.46444396]
[1721718964138,0.36043134,66680.0,66679.0,0.46444396]
[1721718964555,0.40630457,66680.0,66679.0,0.46444396]
[1721718964940,0.28170323,66680.0,66679.0,0.46444396]
[1721718965094,0.40630456,66680.0,66679.0,0.46444396]
[1721718965778,0.17893456,66680.0,66679.0,0.46444396]
[1721718965987,0.17893456,66680.0,66679.0,0.48744396]
[1721718966295,0.13306133,66680.0,66679.0,0.48744396]
[1721718966928,0.13306133,66680.0,66679.0,0.63741596]
[1721718967639,0.13306133,66680.0,66679.0,0.93735996]
[1721718968088,0.13304569,66680.0,66679.0,0.93735996]
[1721718968303,0.13304569,66680.0,66679.0,0.77491596]
[1721718968457,0.13304569,66680.0,66679.0,0.69771596]
[1721718968901,0.13304569,66680.0,66679.0,0.99765996]
[1721718969103,0.00846,66680.0,66679.0,1.29760396]
[1721718969287,0.00846,66680.0,66679.0,1.37485598]
[1721718969925,0.00846,66680.0,66679.0,1.29560396]
[1721718970327,0.00846,66680.0,66679.0,1.29460396]
[1721718971107,0.00846,66680.0,66679.0,1.30860396]
[1721718973063,0.00846,66680.0,66679.0,1.65854796]
[1721718973315,0.00846,66680.0,66679.0,1.73704796]
[1721718973517,0.00846,66680.0,66679.0,1.88401061]
[1721718973691,0.00846,66680.0,66679.0,1.93401061]
[1721718974055,0.00846,66680.0,66679.0,1.72804796]
[1721718974186,0.00846,66680.0,66679.0,1.71404796]
[1721718974396,0.00846,66680.0,66679.0,1.72304796]
[1721718974690,0.00846,66680.0,66679.0,1.73704796]
[1721718974887,0.00846,66680.0,66679.0,1.72304796]
[1721718975776,0.00846,66680.0,66679.0,1.71404796]
[1721718975979,0.00846,66680.0,66679.0,1.72804796]
[1721718976856,0.00846,66680.0,66679.0,1.74204796]
[1721718977478,0.00846,66680.0,66679.0,1.72804796]
[1721718977679,0.00846,66680.0,66679.0,1.71404796]
[1721718977887,0.00846,66680.0,66679.0,1.77313371]
[1721718978505,0.00846,66680.0,66679.0,1.88409636]
[1721718979282,0.00846,66680.0,66679.0,1.89809636]
[1721718979910,0.00846,66680.0,66679.0,1.88409636]
[1721718980257,0.00846,66680.0,66679.0,1.94809636]
[1721718981252,0.00846,66680.0,66679.0,1.89809636]
[1721718981456,0.00846,66680.0,66679.0,1.94809636]
[1721718981997,0.00846,66680.0,66679.0,1.89809636]
[1721718983300,0.00846,66680.0,66679.0,1.94809636]
[1721718983986,0.00846,66680.0,66679.0,1.75113371]
[1721718985301,0.00846,66680.0,66679.0,1.80526048]
[1721718985473,0.00846,66680.0,66679.0,1.80113371]
[1721718986593,0.00846,66680.0,66679.0,1.80526048]
[1721718986795,0.00846,66680.0,66679.0,0.66250171]
[1721718986996,0.12782265,66680.0,66679.0,0.48044396]
[1721718987204,0.33115482,66680.0,66679.0,0.48044396]
[1721718987493,1.32181265,66680.0,66679.0,0.48044396]
[1721718987698,1.32181265,66680.0,66679.0,0.47495991]
[1721718987897,1.02187265,66680.0,66679.0,0.47495991]
[1721718988040,1.02187265,66680.0,66679.0,0.46600201]
[1721718988464,1.02187265,66680.0,66679.0,0.48000201]
[1721718988866,1.02187265,66680.0,66679.0,0.46600201]
[1721718989269,1.02187265,66680.0,66679.0,0.45200201]
[1721718989788,1.02187265,66680.0,66679.0,0.46600201]
[1721718989941,0.72193265,66680.0,66679.0,0.46600201]
[1721718990143,0.42199265,66680.0,66679.0,0.45200201]
[1721718990405,0.72193265,66680.0,66679.0,0.45200201]
[1721718990605,0.28790323,66680.0,66679.0,0.45200201]
[1721718990831,0.13793323,66680.0,66679.0,0.47900201]
[1721718991058,0.09206,66680.0,66679.0,0.47900201]
[1721718991234,0.09206,66680.0,66679.0,0.47500201]
[1721718991444,0.09206,66680.0,66679.0,0.48100201]
[1721718991641,0.13793323,66680.0,66679.0,0.47500201]
[1721718992000,0.13693323,66680.0,66679.0,0.47900201]
[1721718992404,0.09106,66680.0,66679.0,0.47500201]
[1721718992814,0.28690323,66680.0,66679.0,0.47500201]
[1721718993035,1.0208533,66680.0,66679.0,0.45200201]
[1721718993193,0.95228323,66680.0,66679.0,0.45700201]
[1721718993549,0.95228323,66680.0,66679.0,0.45200201]
[1721718993749,0.95228323,66680.0,66679.0,0.46400201]
[1721718994058,0.95228323,66680.0,66679.0,0.45700201]
[1721718994466,0.65234323,66680.0,66679.0,0.47000201]
[1721718994678,0.65234323,66680.0,66679.0,0.45700201]
[1721718995333,0.09106,66680.0,66679.0,0.47500201]
[1721718995565,0.13693323,66680.0,66679.0,0.47500201]
[1721718995771,0.28690323,66680.0,66679.0,0.48800201]
[1721718996180,0.13693323,66680.0,66679.0,0.48700201]
[1721718996398,0.00846,66680.0,66679.0,0.70077241]
[1721718996704,0.00846,66680.0,66679.0,1.30346201]
[1721718996911,0.00846,66680.0,66679.0,1.60340601]
[1721718997109,0.00846,66680.0,66679.0,1.59040601]
[1721718997532,0.00846,66680.0,66679.0,1.59940601]
[1721718997729,0.00846,66680.0,66679.0,1.59040601]
[1721718997931,0.00846,66680.0,66679.0,1.30246201]
[1721718998110,0.00846,66680.0,66679.0,0.48700201]
[1721718998697,0.00846,66680.0,66679.0,0.64097401]
[1721718998915,0.00846,66680.0,66679.0,1.22886201]
[1721718999129,0.00846,66680.0,66679.0,1.22486201]
[1721718999454,0.00846,66680.0,66679.0,1.23086201]
[1721719000416,0.00846,66680.0,66679.0,1.24486201]
[1721719003436,0.00846,66680.0,66679.0,1.87826866]
[1721719003629,0.00846,66680.0,66679.0,1.73130601]
[1721719004633,0.00846,66680.0,66679.0,1.71130601]
[1721719004847,0.00846,66680.0,66679.0,1.77530601]
[1721719005177,0.00846,66680.0,66679.0,1.72530601]
[1721719005388,0.00846,66680.0,66679.0,1.88626866]
[1721719005821,0.00846,66680.0,66679.0,1.87226866]
[1721719006042,0.00846,66680.0,66679.0,1.90826866]
[1721719006275,0.00846,66680.0,66679.0,1.97306353]
[1721719007295,0.00846,66680.0,66679.0,1.97213183]
[1721719007493,0.00846,66680.0,66679.0,1.81116918]
[1721719007696,0.00846,66680.0,66679.0,1.81529595]
[1721719007899,0.00846,66680.0,66679.0,1.84329595]
[1721719008123,0.00846,66680.0,66679.0,1.82929595]
[1721719008688,0.00846,66680.0,66679.0,1.84329595]
[1721719008940,0.00846,66680.0,66679.0,1.9762586]
[1721719009153,0.00846,66680.0,66679.0,1.9902586]
[1721719009322,0.00846,66680.0,66679.0,1.9762586]
[1721719009520,0.00846,66680.0,66679.0,2.2762026]
[1721719009724,0.00846,66681.0,66680.0,1.30041677]
[1721719009912,0.00846,66681.0,66680.0,2.29743187]
[1721719010099,0.00846,66681.0,66680.0,2.30245373]
[1721719010392,0.00846,66681.0,66680.0,2.25259056]
[1721719010598,0.00846,66681.0,66680.0,2.30259689]
[1721719011010,0.00846,66681.0,66680.0,2.30674654]
[1721719011977,0.00846,66681.0,66680.0,2.32074654]
[1721719012156,0.00846,66681.0,66680.0,2.33474654]
[1721719012802,0.00846,66681.0,66680.0,2.32074654]
[1721719013398,0.00846,66681.0,66680.0,2.31964588]
[1721719013812,0.00084,66688.0,66687.0,0.05]
[1721719014089,0.00845,66697.0,66693.0,0.69684777]
[1721719014250,0.00845,66697.0,66693.0,2.196446]
[1721719014525,0.00845,66698.0,66697.0,0.05412677]
[1721719014726,0.52023655,66717.0,66716.0,0.449667]
[1721719014897,0.44093655,66717.0,66716.0,1.20803325]
[1721719015129,0.01046,66719.0,66716.0,1.20803325]
[1721719015130,0.01046,66719.0,66718.0,0.799422]
[1721719015345,0.01046,66719.0,66718.0,1.68318091]
[1721719015490,0.01046,66719.0,66718.0,1.99201325]
[1721719016487,0.01046,66719.0,66718.0,1.98788648]
[1721719017370,0.01046,66719.0,66718.0,1.99201325]
[1721719017593,0.01046,66719.0,66718.0,2.2389759]
[1721719018019,0.01046,66719.0,66718.0,2.2529759]
[1721719018392,0.01046,66719.0,66718.0,2.2669759]
[1721719018599,0.01046,66719.0,66718.0,2.2529759]
[1721719018799,0.01046,66719.0,66718.0,1.93337101]
[1721719019004,0.01046,66719.0,66718.0,1.37125929]
[1721719019217,0.01046,66719.0,66718.0,1.38525929]
[1721719019414,0.01046,66719.0,66718.0,1.08549029]
[1721719019741,0.01046,66719.0,66718.0,1.07149029]
[1721719019889,0.01046,66719.0,66718.0,0.91537948]
[1721719020074,0.01046,66719.0,66718.0,1.21514848]
[1721719020699,0.01046,66719.0,66718.0,1.20114848]
[1721719020911,0.01046,66719.0,66718.0,0.92437948]
[1721719021112,0.12982265,66719.0,66718.0,0.46572648]
[1721719021327,0.27970465,66719.0,66718.0,0.46572648]
[1721719021506,0.27970465,66719.0,66718.0,0.47972648]
[1721719021737,0.57946865,66719.0,66718.0,0.47972648]
[1721719021942,0.57946865,66719.0,66718.0,0.46572648]
[1721719022147,0.27970465,66719.0,66718.0,0.45172648]
[1721719022568,0.27970465,66719.0,66718.0,0.46572648]
[1721719023133,0.01046,66719.0,66718.0,0.53529913]
[1721719023343,0.01046,66719.0,66718.0,0.98595213]
[1721719023551,0.01046,66719.0,66718.0,1.28572113]
[1721719023957,0.01046,66719.0,66718.0,0.68618313]
[1721719024240,0.01046,66719.0,66718.0,0.62561048]
[1721719024576,0.01046,66719.0,66718.0,0.63461048]
[1721719024762,0.01046,66719.0,66718.0,0.63361048]
[1721719024962,0.01046,66719.0,66718.0,0.62461048]
[1721719025239,0.01046,66719.0,66718.0,0.64061048]
[1721719025560,0.01046,66719.0,66718.0,0.66794248]
[1721719025760,0.01046,66719.0,66718.0,0.63861048]
[1721719025967,0.01046,66719.0,66718.0,0.64961048]
[1721719026173,0.05633323,66719.0,66718.0,0.64961048]
[1721719026376,0.01046,66719.0,66718.0,0.64961048]
[1721719026783,0.01046,66719.0,66718.0,0.94937948]
[1721719027207,0.01046,66719.0,66718.0,1.37406423]
[1721719027427,0.01046,66719.0,66718.0,1.07429523]
[1721719028152,0.01046,66719.0,66718.0,0.94937948]
[1721719030498,0.01046,66719.0,66718.0,1.24914848]
[1721719030832,0.01046,66719.0,66718.0,1.64891748]
[1721719031451,0.01046,66719.0,66718.0,1.65304425]
[1721719031681,0.01046,66719.0,66718.0,1.63904425]
[1721719031852,0.01046,66719.0,66718.0,1.62391748]
[1721719032075,0.01046,66719.0,66718.0,1.79588013]
[1721719032275,0.01046,66719.0,66718.0,1.78188013]
[1721719032592,0.01046,66719.0,66718.0,1.78488013]
[1721719033055,0.01046,66719.0,66718.0,2.0887759]
[1721719033227,0.01046,66719.0,66718.0,2.1027759]
[1721719033631,0.01046,66719.0,66718.0,2.1668759]
[1721719034183,0.01046,66719.0,66718.0,2.1528759]
[1721719034380,0.01046,66719.0,66718.0,2.1668759]
[1721719034766,0.01046,66719.0,66718.0,2.1528759]
[1721719034964,0.01046,66719.0,66718.0,2.1668759]
[1721719035141,0.01046,66719.0,66718.0,2.1528759]
[1721719035346,0.01046,66719.0,66718.0,2.2528759]
[1721719035833,0.002794,66737.0,66727.0,1.429848]
[1721719036041,0.0801,66738.0,66727.0,2.06247567]
[1721719036212,0.002794,66737.0,66727.0,2.06732265]
[1721719036647,0.0801,66738.0,66727.0,2.06732265]
[1721719036884,0.0801,66738.0,66727.0,2.06319588]
[1721719038006,0.0801,66738.0,66727.0,2.06732265]
[1721719038598,0.0801,66738.0,66727.0,2.08132265]
[1721719038836,0.0801,66738.0,66727.0,2.07719588]
[1721719039153,0.0801,66738.0,66727.0,2.06319588]
[1721719039353,0.0801,66738.0,66727.0,2.01319588]
[1721719039553,0.108,66728.0,66727.0,0.95449615]
[1721719039752,0.108,66728.0,66727.0,0.91297723]
[1721719039952,0.108,66728.0,66727.0,1.22670523]
[1721719040155,0.108,66728.0,66727.0,1.21270523]
[1721719040375,0.025,66728.0,66727.0,1.92779588]
[1721719040607,0.025,66728.0,66727.0,1.94179588]
[1721719041052,0.025,66728.0,66727.0,2.01479588]
[1721719041438,0.025,66728.0,66727.0,2.01700754]
[1721719041618,0.025,66728.0,66727.0,1.96700754]
[1721719041860,0.025,66728.0,66727.0,2.00300754]
[1721719042039,0.025,66728.0,66727.0,1.95300754]
[1721719042256,0.025,66728.0,66727.0,2.01700754]
[1721719042598,0.025,66728.0,66727.0,1.98900754]
[1721719042796,0.025,66728.0,66727.0,2.01700754]
[1721719044238,0.07348942,66732.0,66731.0,0.749275]
[1721719044470,0.083,66733.0,66732.0,0.449559]
[1721719044699,0.083,66733.0,66732.0,1.21899491]
[1721719044898,0.083,66733.0,66732.0,1.37077502]
[1721719046230,0.083,66733.0,66732.0,1.67048102]
[1721719046635,0.083,66733.0,66732.0,1.68448102]
[1721719047779,0.083,66733.0,66732.0,1.69848102]
[1721719047988,0.0805,66738.0,66737.0,0.299683]
[1721719048203,0.0805,66738.0,66737.0,0.76938291]
[1721719048398,0.0805,66738.0,66737.0,0.77419888]
[1721719048588,0.0805,66738.0,66737.0,1.22372288]
[1721719049602,0.0805,66738.0,66737.0,1.23672288]
[1721719049921,0.0805,66738.0,66737.0,1.53640588]
[1721719050113,0.0805,66738.0,66737.0,1.55040588]
[1721719050883,0.002,66739.0,66738.0,1.586455]
[1721719051083,0.002,66739.0,66738.0,2.21903267]
[1721719051624,0.002,66739.0,66738.0,2.22383914]
[1721719051846,0.002,66739.0,66738.0,2.14181237]
[1721719052309,0.002,66739.0,66738.0,2.15993914]
[1721719052518,0.002,66739.0,66738.0,2.55961814]
[1721719053101,0.002,66739.0,66738.0,2.61478748]
[1721719053337,0.002,66739.0,66738.0,2.60078748]
[1721719053537,0.002,66739.0,66738.0,2.61478748]
[1721719054474,0.002,66739.0,66738.0,2.62878748]
[1721719054684,0.002,66739.0,66738.0,2.63265466]
[1721719055090,0.002,66739.0,66738.0,2.61865466]
[1721719055487,0.002,66739.0,66738.0,2.63265466]
[1721719056267,0.002,66739.0,66738.0,2.62086632]
[1721719057415,0.00846,66747.0,66746.0,1.51621977]
[1721719057663,0.00846,66747.0,66746.0,2.29332004]
[1721719057867,0.00846,66747.0,66746.0,2.47984043]
[1721719058853,0.00846,66747.0,66746.0,2.49384043]
[1721719059278,0.00846,66747.0,66746.0,2.47984043]
[1721719059491,0.00846,66747.0,66746.0,2.85261023]
[1721719059904,0.00846,66747.0,66746.0,2.83861023]
[1721719060301,0.00846,66747.0,66746.0,2.85261023]
[1721719060528,0.00846,66747.0,66746.0,2.83861023]
[1721719060702,0.00846,66747.0,66746.0,2.44943258]
[1721719060909,0.00846,66747.0,66746.0,2.47126685]
[1721719061108,0.00846,66747.0,66746.0,2.38944008]
[1721719061307,0.00846,66747.0,66746.0,2.34421366]
[1721719061505,0.00846,66747.0,66746.0,2.35821366]
[1721719062056,0.00846,66747.0,66746.0,2.34421366]
[1721719062319,0.00846,66747.0,66746.0,2.35821366]
[1721719062713,0.00846,66747.0,66746.0,2.33242532]
[1721719062933,0.00846,66747.0,66746.0,1.71438232]
[1721719063199,0.00846,66747.0,66746.0,1.5281303]
[1721719063481,0.00846,66747.0,66746.0,1.52329236]
[1721719063715,0.00846,66747.0,66746.0,1.53729236]
[1721719063918,0.00846,66747.0,66746.0,1.52329236]
[1721719064122,0.00846,66747.0,66746.0,1.50929236]
[1721719064324,0.00846,66747.0,66746.0,1.52329236]
[1721719064534,0.13293323,66747.0,66746.0,0.9288443]
[1721719064742,0.13293323,66747.0,66746.0,0.9148443]
[1721719064982,0.19773323,66747.0,66746.0,0.4653803]
[1721719065219,0.19773323,66747.0,66746.0,0.4793803]
[1721719065220,0.34755223,66747.0,66746.0,0.4793803]
[1721719065626,0.34755223,66747.0,66746.0,0.4653803]
[1721719065840,0.34755223,66747.0,66746.0,0.4513803]
[1721719066078,0.64719023,66747.0,66746.0,0.4513803]
[1721719066277,0.34755223,66747.0,66746.0,0.4653803]
[1721719066428,0.34755223,66747.0,66746.0,0.4513803]
[1721719066838,0.34755223,66747.0,66746.0,0.4653803]
[1721719067470,0.64719023,66747.0,66746.0,0.4653803]
[1721719067628,0.64719023,66747.0,66746.0,0.4793803]
[1721719068118,0.64719023,66747.0,66746.0,0.4653803]
[1721719068611,0.19773323,66747.0,66746.0,0.4733803]
[1721719068943,0.19773323,66747.0,66746.0,0.4653803]
[1721719069155,0.15186,66747.0,66746.0,0.54990123]
[1721719069371,0.15186,66747.0,66746.0,0.99336523]
[1721719069992,0.15186,66747.0,66746.0,1.00736523]
[1721719070386,0.15186,66747.0,66746.0,0.99253559]
[1721719070642,0.15186,66747.0,66746.0,1.30617859]
[1721719070885,0.15186,66747.0,66746.0,1.29817859]
[1721719071010,0.15186,66747.0,66746.0,1.30617859]
[1721719072027,0.15186,66747.0,66746.0,0.99853559]
[1721719072274,0.08706,66747.0,66746.0,0.99853559]
[1721719072469,0.08706,66747.0,66746.0,1.30617859]
[1721719072822,0.08706,66747.0,66746.0,1.24465766]
[1721719073025,0.08706,66747.0,66746.0,0.93101466]
[1721719073429,0.08706,66747.0,66746.0,0.94501466]
[1721719073843,0.13293323,66747.0,66746.0,0.48155066]
[1721719074217,0.13293323,66747.0,66746.0,0.48755066]
[1721719074402,0.13293323,66747.0,66746.0,0.47355066]
[1721719074750,0.13293323,66747.0,66746.0,0.63237166]
[1721719074751,0.08706,66747.0,66746.0,0.63237166]
[1721719074928,0.13293323,66747.0,66746.0,0.48255066]
[1721719075131,0.13293323,66747.0,66746.0,0.47355066]
[1721719075606,0.13293323,66747.0,66746.0,0.48755066]
[1721719076224,0.34935223,66747.0,66746.0,0.46455066]
[1721719076738,0.34935223,66747.0,66746.0,0.47855066]
[1721719076873,0.64899023,66747.0,66746.0,0.47855066]